[Event "Titled Tuesday Blitz November 30 2021"]
[White "Maksimovic, Bojan"]
[Black "Lavrov, Maxim"]
[WhiteFideId "14408120"]
[BlackFideId "4166418"]
[WhiteElo "2439"]
[BlackElo "2192"]
[Result "1/2-1/2"]
[Round "10"]
[TimeControl "180+1"]
[Date "2021.11.30"]
[WhiteClock "0:00:06"]
[BlackClock "0:00:08"]

1. Nf3 {[%clk 0:03:00]}  Nf6 {[%clk 0:02:58]} 2. c4 {[%clk 0:02:59]}  g6 {[%clk 0:02:58]} 3. g3 {[%clk 0:02:57]}  Bg7 {[%clk 0:02:58]} 4. Bg2 {[%clk 0:02:57]}  O-O {[%clk 0:02:59]} 5. O-O {[%clk 0:02:58]}  d6 {[%clk 0:02:58]} 6. d4 {[%clk 0:02:57]}  Nbd7 {[%clk 0:02:57]} 7. Nc3 {[%clk 0:02:57]}  e5 {[%clk 0:02:57]} 8. e4 {[%clk 0:02:58]}  exd4 {[%clk 0:02:56]} 9. Nxd4 {[%clk 0:02:58]}  Nc5 {[%clk 0:02:57]} 10. h3 {[%clk 0:02:56]}  Re8 {[%clk 0:02:57]} 11. Re1 {[%clk 0:02:56]}  a5 {[%clk 0:02:55]} 12. Bf4 {[%clk 0:02:50]}  Nfd7 {[%clk 0:02:52]} 13. Be3 {[%clk 0:02:45]}  Ne5 {[%clk 0:02:51]} 14. Bf1 {[%clk 0:02:26]}  a4 {[%clk 0:02:42]} 15. Qc2 {[%clk 0:02:22]}  a3 {[%clk 0:02:36]} 16. b3 {[%clk 0:02:21]}  h5 {[%clk 0:02:18]} 17. f4 {[%clk 0:02:13]}  Ned7 {[%clk 0:02:18]} 18. Rad1 {[%clk 0:02:12]}  h4 {[%clk 0:02:09]} 19. g4 {[%clk 0:02:11]}  Nf6 {[%clk 0:02:09]} 20. Bg2 {[%clk 0:02:08]}  Nxg4 {[%clk 0:02:09]} 21. hxg4 {[%clk 0:02:06]}  Bxg4 {[%clk 0:02:10]} 22. Rd2 {[%clk 0:02:04]}  h3 {[%clk 0:02:08]} 23. Bh1 {[%clk 0:02:03]}  Qh4 {[%clk 0:02:06]} 24. Ree2 {[%clk 0:00:43]}  Qg3+ {[%clk 0:01:54]} 25. Kf1 {[%clk 0:00:42]}  Bxe2+ {[%clk 0:01:49]} 26. Rxe2 {[%clk 0:00:39]}  Bxd4 {[%clk 0:01:30]} 27. Bxd4 {[%clk 0:00:38]}  Ne6 {[%clk 0:01:30]} 28. Bf2 {[%clk 0:00:34]}  Qxf4 {[%clk 0:01:24]} 29. Nd5 {[%clk 0:00:33]}  Qe5 {[%clk 0:01:24]} 30. Qd2 {[%clk 0:00:32]}  c6 {[%clk 0:01:24]} 31. Ne3 {[%clk 0:00:24]}  Nf4 {[%clk 0:01:21]} 32. Re1 {[%clk 0:00:25]}  Rad8 {[%clk 0:01:13]} 33. Bg3 {[%clk 0:00:24]}  Qg5 {[%clk 0:01:06]} 34. Qh2 {[%clk 0:00:17]}  Nd3 {[%clk 0:01:04]} 35. Re2 {[%clk 0:00:17]}  Qf6+ {[%clk 0:01:02]} 36. Kg1 {[%clk 0:00:15]}  Qa1+ {[%clk 0:00:58]} 37. Nf1 {[%clk 0:00:16]}  Qd4+ {[%clk 0:00:52]} 38. Bf2 {[%clk 0:00:13]}  Nxf2 {[%clk 0:00:51]} 39. Qxf2 {[%clk 0:00:13]}  Qa1 {[%clk 0:00:43]} 40. Kh2 {[%clk 0:00:12]}  Re5 {[%clk 0:00:42]} 41. Ng3 {[%clk 0:00:12]}  Rde8 {[%clk 0:00:36]} 42. Kxh3 {[%clk 0:00:11]}  Rg5 {[%clk 0:00:34]} 43. Re1 {[%clk 0:00:08]}  Qe5 {[%clk 0:00:32]} 44. Rf1 {[%clk 0:00:08]}  Re7 {[%clk 0:00:29]} 45. Qf4 {[%clk 0:00:08]}  Qxf4 {[%clk 0:00:24]} 46. Rxf4 {[%clk 0:00:08]}  d5 {[%clk 0:00:21]} 47. exd5 {[%clk 0:00:04]}  Re3 {[%clk 0:00:18]} 48. Rf3 {[%clk 0:00:03]}  Rxf3 {[%clk 0:00:15]} 49. Bxf3 {[%clk 0:00:04]}  cxd5 {[%clk 0:00:16]} 50. Bxd5 {[%clk 0:00:05]}  b6 {[%clk 0:00:16]} 51. Ne4 {[%clk 0:00:04]}  Re5 {[%clk 0:00:16]} 52. Nd6 {[%clk 0:00:04]}  Re2 {[%clk 0:00:15]} 53. Nxf7 {[%clk 0:00:02]}  Rxa2 {[%clk 0:00:14]} 54. b4 {[%clk 0:00:02]}  Rb2 {[%clk 0:00:14]} 55. c5 {[%clk 0:00:03]}  Rxb4 {[%clk 0:00:12]} 56. c6 {[%clk 0:00:03]}  Rb1 {[%clk 0:00:10]} 57. c7 {[%clk 0:00:03]}  Rc1 {[%clk 0:00:11]} 58. Nd6+ {[%clk 0:00:04]}  Kg7 {[%clk 0:00:10]} 59. Nc4 {[%clk 0:00:04]}  a2 {[%clk 0:00:09]} 60. c8=Q {[%clk 0:00:05]}  a1=Q {[%clk 0:00:09]} 61. Qg8+ {[%clk 0:00:05]}  Kh6 {[%clk 0:00:09]} 62. Qf8+ {[%clk 0:00:06]}  Kg5 {[%clk 0:00:06]} 63. Qe7+ {[%clk 0:00:04]}  Qf6 {[%clk 0:00:05]} 64. Qe3+ {[%clk 0:00:04]}  Qf4 {[%clk 0:00:05]} 65. Qe7+ {[%clk 0:00:04]}  Qf6 {[%clk 0:00:04]} 66. Qe3+ {[%clk 0:00:04]}  Qf4 {[%clk 0:00:04]} 67. Qe7+ {[%clk 0:00:04]}  Kh6 {[%clk 0:00:03]} 68. Qe3 {[%clk 0:00:01]}  Qxe3+ {[%clk 0:00:02]} 69. Nxe3 {[%clk 0:00:02]}  Rc3 {[%clk 0:00:02]} 70. Kg4 {[%clk 0:00:03]}  Rxe3 {[%clk 0:00:03]} 71. Kf4 {[%clk 0:00:04]}  Re4+ {[%clk 0:00:02]} 72. Bxe4 {[%clk 0:00:04]}  b5 {[%clk 0:00:01]} 73. Bd5 {[%clk 0:00:04]}  b4 {[%clk 0:00:02]} 74. Bb3 {[%clk 0:00:04]}  Kg7 {[%clk 0:00:03]} 75. Kg4 {[%clk 0:00:04]}  Kf6 {[%clk 0:00:04]} 76. Kf4 {[%clk 0:00:05]}  g5+ {[%clk 0:00:05]} 77. Kg4 {[%clk 0:00:06]}  Ke5 {[%clk 0:00:05]} 78. Kxg5 {[%clk 0:00:06]}  Kd4 {[%clk 0:00:06]} 79. Bg8 {[%clk 0:00:06]}  Kc3 {[%clk 0:00:07]} 80. Kh6 {[%clk 0:00:06]}  b3 {[%clk 0:00:08]} 81. Bxb3 {[%clk 0:00:06]} 1/2-1/2


[Site "https://www.chess.com"]

[Event "Titled Tuesday Blitz November 30 2021"]
[White "Nakamura, Hikaru"]
[Black "Sviridov, Valery"]
[WhiteFideId "2016192"]
[BlackFideId "4120680"]
[WhiteElo "2884"]
[BlackElo "2454"]
[Result "1-0"]
[Round "10"]
[TimeControl "180+1"]
[Date "2021.11.30"]
[WhiteClock "0:00:23"]
[BlackClock "0:01:14"]

1. e4 {[%clk 0:03:00]}  Nf6 {[%clk 0:02:58]} 2. Nc3 {[%clk 0:02:59]}  d6 {[%clk 0:02:57]} 3. d4 {[%clk 0:02:59]}  c6 {[%clk 0:02:57]} 4. f4 {[%clk 0:02:59]}  Qa5 {[%clk 0:02:56]} 5. Bd2 {[%clk 0:02:59]}  e5 {[%clk 0:02:55]} 6. Nf3 {[%clk 0:02:38]}  exd4 {[%clk 0:02:52]} 7. Nxd4 {[%clk 0:02:38]}  Qc7 {[%clk 0:02:47]} 8. Bd3 {[%clk 0:02:34]}  g6 {[%clk 0:02:46]} 9. O-O {[%clk 0:02:33]}  Bg7 {[%clk 0:02:46]} 10. Nf3 {[%clk 0:02:32]}  O-O {[%clk 0:02:46]} 11. a4 {[%clk 0:02:32]}  Re8 {[%clk 0:02:46]} 12. Qe1 {[%clk 0:02:31]}  Nbd7 {[%clk 0:02:44]} 13. Qh4 {[%clk 0:02:31]}  Nc5 {[%clk 0:02:30]} 14. Rae1 {[%clk 0:02:11]}  Nxd3 {[%clk 0:02:15]} 15. cxd3 {[%clk 0:02:11]}  Qd8 {[%clk 0:02:15]} 16. f5 {[%clk 0:02:09]}  Nd7 {[%clk 0:02:11]} 17. Bg5 {[%clk 0:01:50]}  f6 {[%clk 0:02:06]} 18. fxg6 {[%clk 0:01:48]}  hxg6 {[%clk 0:02:03]} 19. Bh6 {[%clk 0:01:44]}  Ne5 {[%clk 0:02:00]} 20. d4 {[%clk 0:01:26]}  g5 {[%clk 0:01:41]} 21. Nxg5 {[%clk 0:01:12]}  fxg5 {[%clk 0:01:41]} 22. Bxg5 {[%clk 0:01:13]}  Qb6 {[%clk 0:01:42]} 23. Bf6 {[%clk 0:00:54]}  Qxd4+ {[%clk 0:01:39]} 24. Kh1 {[%clk 0:00:54]}  Qd2 {[%clk 0:01:14]} 25. Bxg7 {[%clk 0:00:27]}  Kxg7 {[%clk 0:01:15]} 26. Qf6+ {[%clk 0:00:27]}  Kg8 {[%clk 0:01:14]} 27. Re2 {[%clk 0:00:23]} 1-0


[Site "https://www.chess.com"]

[Event "Titled Tuesday Blitz November 30 2021"]
[White "Pakleza, Zbigniew"]
[Black "Odegov, Artem"]
[WhiteFideId "1119290"]
[BlackFideId "34183644"]
[WhiteElo "2526"]
[BlackElo "2287"]
[Result "0-1"]
[Round "10"]
[TimeControl "180+1"]
[Date "2021.11.30"]
[WhiteClock "0:00:02"]
[BlackClock "0:00:03"]

1. d4 {[%clk 0:03:00]}  Nf6 {[%clk 0:02:59]} 2. Nf3 {[%clk 0:02:57]}  c5 {[%clk 0:02:59]} 3. c3 {[%clk 0:02:57]}  d5 {[%clk 0:02:59]} 4. Bf4 {[%clk 0:02:57]}  Nc6 {[%clk 0:02:59]} 5. e3 {[%clk 0:02:58]}  Qb6 {[%clk 0:02:59]} 6. Qb3 {[%clk 0:02:58]}  c4 {[%clk 0:02:58]} 7. Qc2 {[%clk 0:02:59]}  g6 {[%clk 0:02:58]} 8. b3 {[%clk 0:02:51]}  Bf5 {[%clk 0:02:58]} 9. Qb2 {[%clk 0:02:52]}  Bg7 {[%clk 0:02:57]} 10. Nbd2 {[%clk 0:02:51]}  O-O {[%clk 0:02:57]} 11. h3 {[%clk 0:02:49]}  Rac8 {[%clk 0:02:51]} 12. Be2 {[%clk 0:02:48]}  Ne4 {[%clk 0:02:33]} 13. O-O {[%clk 0:02:42]}  Nxd2 {[%clk 0:02:32]} 14. Qxd2 {[%clk 0:02:20]}  cxb3 {[%clk 0:02:31]} 15. axb3 {[%clk 0:02:21]}  e5 {[%clk 0:02:31]} 16. dxe5 {[%clk 0:02:08]}  Rfd8 {[%clk 0:02:23]} 17. b4 {[%clk 0:02:00]}  Be4 {[%clk 0:01:57]} 18. Rac1 {[%clk 0:01:30]}  a6 {[%clk 0:01:43]} 19. Rfd1 {[%clk 0:01:28]}  Re8 {[%clk 0:01:35]} 20. Ng5 {[%clk 0:01:06]}  Nxe5 {[%clk 0:01:28]} 21. f3 {[%clk 0:00:51]}  h6 {[%clk 0:01:21]} 22. Nxf7 {[%clk 0:00:38]}  Nxf7 {[%clk 0:01:21]} 23. fxe4 {[%clk 0:00:38]}  Rxe4 {[%clk 0:01:19]} 24. Kh1 {[%clk 0:00:34]}  Rce8 {[%clk 0:01:15]} 25. Bf3 {[%clk 0:00:32]}  R4e7 {[%clk 0:01:05]} 26. Bxd5 {[%clk 0:00:32]}  Kh7 {[%clk 0:01:06]} 27. e4 {[%clk 0:00:31]}  Ne5 {[%clk 0:01:05]} 28. c4 {[%clk 0:00:28]}  Qf6 {[%clk 0:01:03]} 29. c5 {[%clk 0:00:28]}  Qh4 {[%clk 0:01:01]} 30. Rf1 {[%clk 0:00:26]}  Ng4 {[%clk 0:00:59]} 31. Qe1 {[%clk 0:00:23]}  Qxe1 {[%clk 0:00:57]} 32. Rcxe1 {[%clk 0:00:23]}  Nf6 {[%clk 0:00:56]} 33. Bd6 {[%clk 0:00:20]}  Nxd5 {[%clk 0:00:56]} 34. Bxe7 {[%clk 0:00:17]}  Nxe7 {[%clk 0:00:57]} 35. Rf7 {[%clk 0:00:15]}  Kg8 {[%clk 0:00:57]} 36. Ref1 {[%clk 0:00:15]}  Rf8 {[%clk 0:00:57]} 37. Rxf8+ {[%clk 0:00:15]}  Bxf8 {[%clk 0:00:57]} 38. Rd1 {[%clk 0:00:13]}  Nc6 {[%clk 0:00:57]} 39. Rb1 {[%clk 0:00:09]}  Nd4 {[%clk 0:00:53]} 40. g4 {[%clk 0:00:06]}  Kf7 {[%clk 0:00:54]} 41. Kg2 {[%clk 0:00:06]}  Ke6 {[%clk 0:00:54]} 42. Kf2 {[%clk 0:00:07]}  Nc6 {[%clk 0:00:52]} 43. Ke3 {[%clk 0:00:08]}  Nxb4 {[%clk 0:00:51]} 44. Kd4 {[%clk 0:00:08]}  Nc6+ {[%clk 0:00:50]} 45. Kc4 {[%clk 0:00:08]}  Ne5+ {[%clk 0:00:50]} 46. Kd4 {[%clk 0:00:08]}  Nc6+ {[%clk 0:00:49]} 47. Kc4 {[%clk 0:00:09]}  Be7 {[%clk 0:00:47]} 48. Rd1 {[%clk 0:00:06]}  Ne5+ {[%clk 0:00:44]} 49. Kd4 {[%clk 0:00:07]}  Nf3+ {[%clk 0:00:44]} 50. Kc4 {[%clk 0:00:07]}  Ng5 {[%clk 0:00:42]} 51. Rb1 {[%clk 0:00:07]}  Nxe4 {[%clk 0:00:42]} 52. Rb6+ {[%clk 0:00:06]}  Ke5 {[%clk 0:00:39]} 53. Rxg6 {[%clk 0:00:05]}  Nxc5 {[%clk 0:00:17]} 54. Rxh6 {[%clk 0:00:05]}  b5+ {[%clk 0:00:17]} 55. Kc3 {[%clk 0:00:06]}  Ne4+ {[%clk 0:00:17]} 56. Kc2 {[%clk 0:00:06]}  b4 {[%clk 0:00:14]} 57. Rxa6 {[%clk 0:00:06]}  Nc5 {[%clk 0:00:14]} 58. Ra8 {[%clk 0:00:04]}  Kd5 {[%clk 0:00:14]} 59. Re8 {[%clk 0:00:03]}  Bf6 {[%clk 0:00:15]} 60. Rf8 {[%clk 0:00:02]}  b3+ {[%clk 0:00:14]} 61. Kb1 {[%clk 0:00:03]}  Be5 {[%clk 0:00:14]} 62. g5 {[%clk 0:00:02]}  Kc4 {[%clk 0:00:14]} 63. g6 {[%clk 0:00:02]}  Ne4 {[%clk 0:00:12]} 64. Rf5 {[%clk 0:00:03]}  Nd2+ {[%clk 0:00:12]} 65. Kc1 {[%clk 0:00:03]}  b2+ {[%clk 0:00:13]} 66. Kxd2 {[%clk 0:00:04]}  b1=Q {[%clk 0:00:13]} 67. Rxe5 {[%clk 0:00:05]}  Qxg6 {[%clk 0:00:13]} 68. Re3 {[%clk 0:00:04]}  Qg2+ {[%clk 0:00:13]} 69. Ke1 {[%clk 0:00:04]}  Kd4 {[%clk 0:00:12]} 70. Re2 {[%clk 0:00:05]}  Qxh3 {[%clk 0:00:12]} 71. Kd2 {[%clk 0:00:06]}  Qc3+ {[%clk 0:00:12]} 72. Kd1 {[%clk 0:00:06]}  Qa1+ {[%clk 0:00:09]} 73. Kd2 {[%clk 0:00:07]}  Qa5+ {[%clk 0:00:08]} 74. Kc2 {[%clk 0:00:05]}  Qc5+ {[%clk 0:00:04]} 75. Kd2 {[%clk 0:00:05]}  Qa3 {[%clk 0:00:03]} 76. Kd1 {[%clk 0:00:02]}  Qa5 {[%clk 0:00:03]} 77. Rd2+ {[%clk 0:00:02]}  Ke3 {[%clk 0:00:04]} 78. Rc2 {[%clk 0:00:02]}  Kd3 {[%clk 0:00:03]} 0-1


[Site "https://www.chess.com"]

[Event "Titled Tuesday Blitz November 30 2021"]
[White "Papasimakopoulos, Alexandros"]
[Black "Kovalev, Vladislav"]
[WhiteFideId "4244125"]
[BlackFideId "13504398"]
[WhiteElo "2394"]
[BlackElo "2573"]
[Result "0-1"]
[Round "10"]
[TimeControl "180+1"]
[Date "2021.11.30"]
[WhiteClock "0:00:06"]
[BlackClock "0:00:04"]

1. d4 {[%clk 0:03:00]}  Nf6 {[%clk 0:02:42]} 2. c4 {[%clk 0:03:00]}  e5 {[%clk 0:02:41]} 3. dxe5 {[%clk 0:03:00]}  Ng4 {[%clk 0:02:42]} 4. e3 {[%clk 0:03:01]}  Nxe5 {[%clk 0:02:42]} 5. Nh3 {[%clk 0:03:01]}  d6 {[%clk 0:02:42]} 6. Nf4 {[%clk 0:03:01]}  g6 {[%clk 0:02:42]} 7. Nc3 {[%clk 0:03:01]}  Bg7 {[%clk 0:02:43]} 8. Be2 {[%clk 0:03:02]}  O-O {[%clk 0:02:44]} 9. O-O {[%clk 0:03:02]}  Nbd7 {[%clk 0:02:42]} 10. e4 {[%clk 0:03:02]}  Nb6 {[%clk 0:02:42]} 11. Qb3 {[%clk 0:02:54]}  a5 {[%clk 0:02:41]} 12. a4 {[%clk 0:02:52]}  Nbd7 {[%clk 0:01:55]} 13. Be3 {[%clk 0:02:51]}  Nc5 {[%clk 0:01:55]} 14. Qc2 {[%clk 0:02:51]}  c6 {[%clk 0:01:51]} 15. Rad1 {[%clk 0:02:47]}  Qe7 {[%clk 0:01:51]} 16. b3 {[%clk 0:02:39]}  Re8 {[%clk 0:01:49]} 17. Rfe1 {[%clk 0:02:38]}  h5 {[%clk 0:01:25]} 18. Nd3 {[%clk 0:02:30]}  Nexd3 {[%clk 0:01:22]} 19. Bxd3 {[%clk 0:02:31]}  h4 {[%clk 0:01:15]} 20. h3 {[%clk 0:02:30]}  Qe5 {[%clk 0:01:05]} 21. Bd2 {[%clk 0:02:28]}  g5 {[%clk 0:00:50]} 22. Be2 {[%clk 0:02:18]}  Bd7 {[%clk 0:00:49]} 23. Bg4 {[%clk 0:02:18]}  Bxg4 {[%clk 0:00:44]} 24. hxg4 {[%clk 0:02:19]}  Qe6 {[%clk 0:00:40]} 25. f3 {[%clk 0:02:13]}  Qf6 {[%clk 0:00:40]} 26. Rf1 {[%clk 0:02:06]}  Qd4+ {[%clk 0:00:36]} 27. Kh1 {[%clk 0:02:03]}  Qd3 {[%clk 0:00:17]} 28. Qxd3 {[%clk 0:01:51]}  Nxd3 {[%clk 0:00:18]} 29. Ne2 {[%clk 0:01:51]}  Nc5 {[%clk 0:00:18]} 30. Nc1 {[%clk 0:01:51]}  Bf6 {[%clk 0:00:14]} 31. Be3 {[%clk 0:01:49]}  Red8 {[%clk 0:00:15]} 32. Bxc5 {[%clk 0:01:42]}  dxc5 {[%clk 0:00:15]} 33. Ne2 {[%clk 0:01:43]}  Be5 {[%clk 0:00:14]} 34. Kg1 {[%clk 0:01:39]}  Kf8 {[%clk 0:00:15]} 35. Kf2 {[%clk 0:01:39]}  Ke7 {[%clk 0:00:14]} 36. Ke3 {[%clk 0:01:39]}  Rdb8 {[%clk 0:00:12]} 37. Rd3 {[%clk 0:01:34]}  Ke6 {[%clk 0:00:11]} 38. Rfd1 {[%clk 0:01:05]}  Rh8 {[%clk 0:00:11]} 39. f4 {[%clk 0:01:00]}  gxf4+ {[%clk 0:00:11]} 40. Nxf4+ {[%clk 0:01:00]}  Kf6 {[%clk 0:00:12]} 41. Rd7 {[%clk 0:00:58]}  Bd4+ {[%clk 0:00:10]} 42. Kf3 {[%clk 0:00:58]}  Rad8 {[%clk 0:00:10]} 43. Rxb7 {[%clk 0:00:56]}  Rb8 {[%clk 0:00:08]} 44. Rxb8 {[%clk 0:00:56]}  Rxb8 {[%clk 0:00:09]} 45. Rd3 {[%clk 0:00:56]}  Ke5 {[%clk 0:00:07]} 46. g5 {[%clk 0:00:52]}  Rg8 {[%clk 0:00:07]} 47. Nh3 {[%clk 0:00:49]}  f6 {[%clk 0:00:06]} 48. gxf6 {[%clk 0:00:30]}  Kxf6 {[%clk 0:00:06]} 49. Nf4 {[%clk 0:00:20]}  Ke5 {[%clk 0:00:06]} 50. Ne2 {[%clk 0:00:20]}  Rf8+ {[%clk 0:00:06]} 51. Kg4 {[%clk 0:00:20]}  Kxe4 {[%clk 0:00:07]} 52. Rf3 {[%clk 0:00:19]}  Rg8+ {[%clk 0:00:05]} 53. Kh3 {[%clk 0:00:19]}  Be5 {[%clk 0:00:06]} 54. Nc1 {[%clk 0:00:17]}  Rg3+ {[%clk 0:00:04]} 55. Kxh4 {[%clk 0:00:17]}  Rxg2 {[%clk 0:00:04]} 56. Rf8 {[%clk 0:00:16]}  Bf4 {[%clk 0:00:04]} 57. Re8+ {[%clk 0:00:13]}  Kf3 {[%clk 0:00:04]} 58. Kh5 {[%clk 0:00:10]}  Bxc1 {[%clk 0:00:04]} 59. Re6 {[%clk 0:00:11]}  Rg5+ {[%clk 0:00:03]} 60. Kh4 {[%clk 0:00:11]}  Rf5 {[%clk 0:00:03]} 61. Rxc6 {[%clk 0:00:10]}  Be3 {[%clk 0:00:04]} 62. Rh6 {[%clk 0:00:06]}  Bxh6 {[%clk 0:00:04]} 0-1


[Site "https://www.chess.com"]

[Event "Titled Tuesday Blitz November 30 2021"]
[White "Perez Ponsa, Federico"]
[Black "Preotu, Razvan"]
[WhiteFideId "117927"]
[BlackFideId "2613280"]
[WhiteElo "2672"]
[BlackElo "2407"]
[Result "1-0"]
[Round "10"]
[TimeControl "180+1"]
[Date "2021.11.30"]
[WhiteClock "0:00:39"]
[BlackClock "0:00:03"]

1. e4 {[%clk 0:03:00]}  c5 {[%clk 0:02:59]} 2. Nf3 {[%clk 0:03:00]}  d6 {[%clk 0:03:00]} 3. Bb5+ {[%clk 0:03:01]}  Nd7 {[%clk 0:02:59]} 4. c3 {[%clk 0:02:59]}  Nf6 {[%clk 0:02:55]} 5. Bd3 {[%clk 0:02:58]}  a6 {[%clk 0:02:39]} 6. Bc2 {[%clk 0:02:56]}  b5 {[%clk 0:02:14]} 7. d4 {[%clk 0:02:56]}  e6 {[%clk 0:02:11]} 8. O-O {[%clk 0:02:55]}  Bb7 {[%clk 0:02:10]} 9. Re1 {[%clk 0:02:56]}  Be7 {[%clk 0:02:09]} 10. Nbd2 {[%clk 0:02:56]}  Qc7 {[%clk 0:02:08]} 11. Nf1 {[%clk 0:02:56]}  O-O {[%clk 0:02:07]} 12. Ng3 {[%clk 0:02:57]}  Rfc8 {[%clk 0:01:56]} 13. Bd3 {[%clk 0:02:46]}  b4 {[%clk 0:01:52]} 14. e5 {[%clk 0:02:34]}  Bxf3 {[%clk 0:01:49]} 15. Qxf3 {[%clk 0:02:19]}  dxe5 {[%clk 0:01:49]} 16. Bg5 {[%clk 0:01:54]}  bxc3 {[%clk 0:01:03]} 17. bxc3 {[%clk 0:01:55]}  cxd4 {[%clk 0:01:03]} 18. cxd4 {[%clk 0:01:55]}  exd4 {[%clk 0:01:04]} 19. Nf5 {[%clk 0:01:52]}  Bf8 {[%clk 0:01:04]} 20. Rac1 {[%clk 0:01:34]}  Qa5 {[%clk 0:00:59]} 21. Nh6+ {[%clk 0:01:29]}  gxh6 {[%clk 0:00:58]} 22. Bxf6 {[%clk 0:01:30]}  Nxf6 {[%clk 0:00:48]} 23. Qxf6 {[%clk 0:01:30]}  Bg7 {[%clk 0:00:47]} 24. Qf3 {[%clk 0:01:30]}  Rab8 {[%clk 0:00:30]} 25. Qe4 {[%clk 0:01:29]}  Rxc1 {[%clk 0:00:18]} 26. Qxh7+ {[%clk 0:01:27]}  Kf8 {[%clk 0:00:18]} 27. Rxc1 {[%clk 0:01:28]}  Qd2 {[%clk 0:00:16]} 28. Rf1 {[%clk 0:01:22]}  Qxa2 {[%clk 0:00:17]} 29. Qe4 {[%clk 0:01:15]}  a5 {[%clk 0:00:16]} 30. Qc6 {[%clk 0:01:12]}  Qb3 {[%clk 0:00:14]} 31. Qc5+ {[%clk 0:01:11]}  Kg8 {[%clk 0:00:14]} 32. Be4 {[%clk 0:01:09]}  Qb4 {[%clk 0:00:13]} 33. Qc7 {[%clk 0:01:07]}  a4 {[%clk 0:00:13]} 34. g3 {[%clk 0:01:08]}  a3 {[%clk 0:00:12]} 35. Qa7 {[%clk 0:01:04]}  Rc8 {[%clk 0:00:06]} 36. Rb1 {[%clk 0:01:04]}  Qc5 {[%clk 0:00:05]} 37. Qa6 {[%clk 0:00:58]}  Bf8 {[%clk 0:00:03]} 38. Rb7 {[%clk 0:00:58]}  Qe5 {[%clk 0:00:01]} 39. Qe2 {[%clk 0:00:54]}  Rc1+ {[%clk 0:00:02]} 40. Kg2 {[%clk 0:00:54]}  a2 {[%clk 0:00:03]} 41. Bh7+ {[%clk 0:00:53]}  Kxh7 {[%clk 0:00:02]} 42. Qxe5 {[%clk 0:00:52]}  a1=Q {[%clk 0:00:02]} 43. Rxf7+ {[%clk 0:00:53]}  Kg8 {[%clk 0:00:03]} 44. Qf6 {[%clk 0:00:39]}  Rg1+ {[%clk 0:00:02]} 45. Kh3 {[%clk 0:00:39]}  Qf1+ {[%clk 0:00:02]} 46. Kh4 {[%clk 0:00:40]}  Qd3 {[%clk 0:00:03]} 47. Rxf8+ {[%clk 0:00:39]}  Kh7 {[%clk 0:00:03]} 48. Rh8# {[%clk 0:00:39]} 1-0


[Site "https://www.chess.com"]

[Event "Titled Tuesday Blitz November 30 2021"]
[White "Rasulov, Vugar"]
[Black "Kamsky, Gata"]
[WhiteFideId "13402390"]
[BlackFideId "2000024"]
[WhiteElo "2560"]
[BlackElo "2645"]
[Result "1-0"]
[Round "10"]
[TimeControl "180+1"]
[Date "2021.11.30"]
[WhiteClock "0:00:37"]
[BlackClock "0:00:04"]

1. d4 {[%clk 0:03:00]}  Nf6 {[%clk 0:02:57]} 2. c4 {[%clk 0:03:01]}  e6 {[%clk 0:02:57]} 3. Nc3 {[%clk 0:03:01]}  Bb4 {[%clk 0:02:56]} 4. Bd2 {[%clk 0:03:02]}  O-O {[%clk 0:02:51]} 5. e3 {[%clk 0:03:01]}  b6 {[%clk 0:02:50]} 6. Bd3 {[%clk 0:02:59]}  Bb7 {[%clk 0:02:49]} 7. Nge2 {[%clk 0:03:00]}  d5 {[%clk 0:02:44]} 8. O-O {[%clk 0:02:55]}  dxc4 {[%clk 0:02:44]} 9. Bxc4 {[%clk 0:02:55]}  Nbd7 {[%clk 0:02:44]} 10. Ng3 {[%clk 0:02:50]}  c5 {[%clk 0:02:39]} 11. a3 {[%clk 0:02:49]}  cxd4 {[%clk 0:02:36]} 12. axb4 {[%clk 0:02:47]}  dxc3 {[%clk 0:02:36]} 13. Bxc3 {[%clk 0:02:44]}  Qc7 {[%clk 0:02:27]} 14. Qe2 {[%clk 0:02:39]}  Ne5 {[%clk 0:02:15]} 15. Ba6 {[%clk 0:02:34]}  Bxa6 {[%clk 0:02:14]} 16. Rxa6 {[%clk 0:02:34]}  Nd5 {[%clk 0:02:13]} 17. Ne4 {[%clk 0:02:17]}  Nxc3 {[%clk 0:02:12]} 18. Nxc3 {[%clk 0:02:12]}  Qc4 {[%clk 0:02:02]} 19. b5 {[%clk 0:02:05]}  Qxe2 {[%clk 0:02:01]} 20. Nxe2 {[%clk 0:02:06]}  Nc4 {[%clk 0:01:54]} 21. Rfa1 {[%clk 0:02:01]}  e5 {[%clk 0:01:41]} 22. Rxa7 {[%clk 0:01:58]}  Rxa7 {[%clk 0:01:41]} 23. Rxa7 {[%clk 0:01:58]}  Rd8 {[%clk 0:01:39]} 24. g3 {[%clk 0:01:50]}  Nxb2 {[%clk 0:01:36]} 25. Nc3 {[%clk 0:01:50]}  h5 {[%clk 0:01:27]} 26. Rb7 {[%clk 0:01:45]}  Nc4 {[%clk 0:01:25]} 27. Rc7 {[%clk 0:01:45]}  Na3 {[%clk 0:01:16]} 28. Rc6 {[%clk 0:01:39]}  Rd3 {[%clk 0:00:39]} 29. Kf1 {[%clk 0:01:36]}  Rd2 {[%clk 0:00:25]} 30. Rxb6 {[%clk 0:01:20]}  Rb2 {[%clk 0:00:22]} 31. Ra6 {[%clk 0:01:11]}  Nc4 {[%clk 0:00:19]} 32. Rc6 {[%clk 0:01:02]}  Nd2+ {[%clk 0:00:19]} 33. Kg2 {[%clk 0:01:02]}  f6 {[%clk 0:00:15]} 34. b6 {[%clk 0:01:01]}  Kh7 {[%clk 0:00:14]} 35. Na4 {[%clk 0:00:51]}  Rb4 {[%clk 0:00:13]} 36. Nc5 {[%clk 0:00:50]}  Ne4 {[%clk 0:00:11]} 37. Nxe4 {[%clk 0:00:42]}  Rxe4 {[%clk 0:00:11]} 38. b7 {[%clk 0:00:42]}  Rb4 {[%clk 0:00:12]} 39. Rc7 {[%clk 0:00:42]}  Kg6 {[%clk 0:00:12]} 40. h4 {[%clk 0:00:42]}  e4 {[%clk 0:00:11]} 41. Kf1 {[%clk 0:00:42]}  Rb2 {[%clk 0:00:11]} 42. Ke1 {[%clk 0:00:43]}  Kh6 {[%clk 0:00:11]} 43. Kd1 {[%clk 0:00:43]}  g5 {[%clk 0:00:11]} 44. Kc1 {[%clk 0:00:43]}  Rb5 {[%clk 0:00:11]} 45. Kc2 {[%clk 0:00:43]}  gxh4 {[%clk 0:00:10]} 46. gxh4 {[%clk 0:00:44]}  Kg6 {[%clk 0:00:11]} 47. Kc3 {[%clk 0:00:43]}  Rb1 {[%clk 0:00:11]} 48. Kd4 {[%clk 0:00:40]}  Kf5 {[%clk 0:00:11]} 49. Rg7 {[%clk 0:00:41]}  Rb5 {[%clk 0:00:09]} 50. Kc4 {[%clk 0:00:40]}  Rb2 {[%clk 0:00:09]} 51. Kc5 {[%clk 0:00:41]}  Rc2+ {[%clk 0:00:07]} 52. Kd6 {[%clk 0:00:41]}  Rd2+ {[%clk 0:00:07]} 53. Kc7 {[%clk 0:00:41]}  Rc2+ {[%clk 0:00:07]} 54. Kd8 {[%clk 0:00:42]}  Rb2 {[%clk 0:00:06]} 55. Kc8 {[%clk 0:00:42]}  Rc2+ {[%clk 0:00:04]} 56. Rc7 {[%clk 0:00:42]}  Rb2 {[%clk 0:00:04]} 57. Rc6 {[%clk 0:00:37]} 1-0


[Site "https://www.chess.com"]